bitfinex/quotes_BTCUSD_20250412
["timestamp","ask_amount","ask_price","bid_price","bid_amount"]
[1744491885341,2.1569489,85367.0,85366.0,1e-07]
[1744491885942,2.0107489,85367.0,85366.0,1e-07]
[1744491886159,2.1569489,85367.0,85366.0,1e-07]
[1744491886966,2.0107489,85367.0,85366.0,1e-07]
[1744491887280,2.1108489,85367.0,85366.0,1e-07]
[1744491896245,2.0635489,85367.0,85366.0,1e-07]
[1744491896789,0.234317,85355.0,85353.0,0.0073211]
[1744491896991,0.14604,85354.0,85353.0,0.2416391]
[1744491897211,0.011715,85358.0,85351.0,0.246039]
[1744491897676,0.011715,85358.0,85352.0,0.0946603]
[1744491897971,0.011715,85358.0,85353.0,0.00732034]
[1744491898174,0.003,85355.0,85353.0,0.00732034]
[1744491898520,0.003,85355.0,85354.0,0.00732034]
[1744491898744,0.011715,85357.0,85354.0,0.24163834]
[1744491898940,0.011715,85357.0,85354.0,0.24529864]
[1744491899143,0.011715,85357.0,85355.0,0.00732034]
[1744491899754,0.011715,85357.0,85356.0,0.01098064]
[1744491901028,0.011715,85357.0,85356.0,0.00732034]
[1744491901428,0.012715,85357.0,85356.0,0.00732034]
[1744491901733,0.011715,85357.0,85356.0,0.00732034]
[1744491901952,0.011715,85357.0,85356.0,0.00932034]
[1744491902192,0.012715,85357.0,85356.0,0.01032034]
[1744491902749,0.001,85357.0,85356.0,0.01032034]
[1744491903097,0.23531,85357.0,85356.0,0.01032034]
[1744491903738,0.35615154,85357.0,85356.0,0.003]
[1744491904308,0.35515154,85357.0,85356.0,0.001]
[1744491904509,0.234329,85350.0,85349.0,0.00732034]
[1744491904806,0.234329,85350.0,85345.0,0.00732034]
[1744491905571,0.234329,85350.0,85346.0,0.00732034]
[1744491905774,0.14487185,85349.0,85346.0,0.00732034]
[1744491906251,0.14487185,85349.0,85348.0,0.00774384]
[1744491907980,0.14687185,85349.0,85348.0,0.00774384]
[1744491908165,0.14787185,85349.0,85348.0,0.00774384]
[1744491911493,0.003,85349.0,85348.0,0.00774384]
[1744491911795,0.14904,85349.0,85348.0,0.00774384]
[1744491917567,0.31498154,85349.0,85348.0,0.00774384]
[1744491918082,0.65498154,85349.0,85348.0,0.00774384]
[1744491918265,0.65498154,85349.0,85348.0,0.0004235]
[1744491918721,0.66586623,85349.0,85348.0,0.0004235]
[1744491918886,0.71146623,85349.0,85348.0,0.0004235]
[1744491919084,0.71446623,85349.0,85348.0,0.0004235]
[1744491919442,1.78416608,85349.0,85348.0,5e-07]
[1744491919570,0.72900708,85349.0,85348.0,5e-07]
[1744491920426,0.72600708,85349.0,85348.0,5e-07]
[1744491920570,0.73600708,85349.0,85348.0,5e-07]
[1744491920969,0.73000708,85349.0,85348.0,5e-07]
[1744491921225,0.73800708,85349.0,85348.0,5e-07]
[1744491921793,0.73400708,85349.0,85348.0,5e-07]
[1744491922018,0.73800708,85349.0,85348.0,5e-07]
[1744491922194,0.35454085,85343.0,85342.0,8.558e-05]
[1744491922390,0.75209939,85343.0,85342.0,8.558e-05]
[1744491922802,0.67436139,85343.0,85342.0,8.558e-05]
[1744491923684,0.67736139,85343.0,85342.0,8.558e-05]
[1744491923886,0.68236139,85343.0,85342.0,8.558e-05]
[1744491924622,0.80079439,85343.0,85342.0,8.558e-05]
[1744491925007,0.72285639,85343.0,85342.0,8.558e-05]
[1744491925207,0.70413639,85343.0,85342.0,8.558e-05]
[1744491926207,0.69274339,85343.0,85342.0,8.558e-05]
[1744491927523,0.73804693,85343.0,85342.0,8.558e-05]
[1744491928263,0.69274339,85343.0,85342.0,8.558e-05]
[1744491930529,0.67820254,85343.0,85342.0,8.558e-05]
[1744491930702,0.61480154,85343.0,85342.0,8.558e-05]
[1744491931005,0.50914954,85343.0,85342.0,8.558e-05]
[1744491934359,0.388308,85343.0,85342.0,8.558e-05]
[1744491936122,0.242348,85343.0,85342.0,8.558e-05]
[1744491936305,0.388308,85343.0,85342.0,8.558e-05]
[1744491937025,0.008,85343.0,85342.0,0.23443658]
[1744491937181,0.15396,85343.0,85342.0,8.558e-05]
[1744491937392,0.15396,85343.0,85342.0,0.01625186]
[1744491938094,0.14596,85343.0,85342.0,0.01625186]
[1744491938442,0.14696,85343.0,85342.0,0.01625186]
[1744491942847,0.14696,85343.0,85342.0,8.558e-05]
[1744491943047,0.14692,85343.0,85342.0,8.558e-05]
[1744491946077,0.001,85343.0,85342.0,8.558e-05]
[1744491946279,0.14692,85343.0,85342.0,0.00740737]
[1744491946503,0.14692,85343.0,85342.0,0.02346195]
[1744491947676,0.14692,85343.0,85342.0,0.25781295]
[1744491953557,0.001,85343.0,85342.0,0.25781295]
[1744491953726,0.14692,85343.0,85342.0,0.25781295]
[1744491954102,0.001,85343.0,85342.0,0.25781295]
[1744491954229,0.001,85343.0,85342.0,0.30321295]
[1744491958093,0.001,85343.0,85342.0,0.30687352]
[1744491963356,0.001,85343.0,85342.0,0.26147352]
[1744491964882,0.001,85343.0,85342.0,0.02712252]
[1744491965689,0.001,85343.0,85342.0,0.02346195]
[1744491966988,0.001,85343.0,85342.0,0.02712252]
[1744491970444,0.001,85343.0,85342.0,0.02346195]
[1744491972434,0.001,85343.0,85342.0,0.25781295]
[1744491973531,0.001,85343.0,85342.0,0.26147352]
[1744491983562,0.001,85343.0,85342.0,0.29422664]
[1744491984430,0.00919,85355.0,85354.0,0.234318]
[1744491984834,0.00919,85355.0,85354.0,0.28836605]
[1744491985450,0.00919,85355.0,85354.0,0.2592735]
[1744491985884,0.00919,85355.0,85354.0,0.29199062]
[1744491986333,0.01019,85355.0,85354.0,0.2612735]
[1744491986690,0.01019,85355.0,85354.0,0.2622735]
[1744491986897,0.01019,85355.0,85354.0,0.27116596]
[1744491988301,0.01019,85355.0,85354.0,0.4386075]
[1744491988749,0.00046536,85367.0,85366.0,0.234285]
[1744491988978,0.00046536,85367.0,85366.0,0.39511857]
[1744491989195,0.00046536,85367.0,85366.0,0.40899714]
[1744491989413,0.00046536,85367.0,85366.0,0.41265771]
[1744491989634,0.00046536,85367.0,85366.0,0.46065771]
[1744491989831,0.00046536,85367.0,85366.0,0.86985771]
[1744491989983,0.00146536,85367.0,85366.0,0.87085771]
[1744491990385,0.00246536,85367.0,85366.0,0.87285771]
[1744491992006,0.00246536,85367.0,85366.0,1.21285771]
[1744491992207,0.00246536,85367.0,85366.0,1.18018747]
[1744491992981,0.00246536,85367.0,85366.0,1.13218747]
[1744491994839,0.0008464,85383.0,85382.0,0.234241]
[1744491995124,0.00090633,85383.0,85382.0,0.23658311]
[1744491995267,0.00090633,85383.0,85382.0,0.25521618]
[1744491995467,0.00090633,85383.0,85382.0,0.37605772]
[1744491995895,0.00090633,85383.0,85382.0,0.37971829]
[1744491996751,0.00090633,85383.0,85382.0,0.38171829]
[1744491996941,0.00190633,85383.0,85382.0,0.38471829]
[1744491997295,0.00190633,85383.0,85382.0,0.38271829]
[1744491997912,0.00190633,85383.0,85382.0,0.72271829]
[1744491998168,0.00190633,85383.0,85382.0,1.14322089]
[1744491998528,0.00190633,85383.0,85382.0,1.14522089]
[1744491998758,0.00090633,85383.0,85382.0,1.14222089]
[1744491999016,0.00090633,85383.0,85382.0,1.14422089]
[1744491999668,0.00190633,85383.0,85382.0,1.15022089]
[1744492000431,0.00190633,85383.0,85382.0,1.02937935]
[1744492000836,0.00190633,85383.0,85382.0,0.68937935]
[1744492001580,0.00190633,85383.0,85382.0,0.68571878]
[1744492002338,0.00194633,85383.0,85382.0,0.68571878]
[1744492002908,0.00194633,85383.0,85382.0,0.67441618]
[1744492003814,0.00194633,85383.0,85382.0,0.03097518]
[1744492004111,0.04714633,85383.0,85382.0,0.03097518]
[1744492004335,0.04714633,85383.0,85382.0,0.01732179]
[1744492004498,0.04714633,85383.0,85382.0,0.03092624]
[1744492004705,0.04714633,85383.0,85382.0,0.02692624]
[1744492004905,0.04714633,85383.0,85382.0,0.02892624]
[1744492005554,0.32738433,85383.0,85382.0,0.02892624]
[1744492005756,0.44722587,85383.0,85382.0,0.00932179]
[1744492005955,0.328974,85370.0,85369.0,0.01102447]
[1744492006179,0.234288,85365.0,85364.0,0.00731907]
[1744492006390,0.23431,85357.0,85352.0,0.234321]
[1744492006561,0.23434,85346.0,85342.0,8.558e-05]
[1744492006739,0.0466,85348.0,85346.0,0.23434]
[1744492007125,0.0466,85348.0,85347.0,0.01359641]
[1744492007526,0.0466,85348.0,85347.0,0.01406177]
[1744492008381,0.0466,85348.0,85347.0,0.01506177]
[1744492009228,0.0466,85348.0,85347.0,0.01606177]
[1744492010413,0.011715,85354.0,85348.0,0.234334]
[1744492010563,0.011716,85353.0,85349.0,0.234331]
[1744492010759,0.011714,85361.0,85350.0,0.24804939]
[1744492010965,0.011714,85361.0,85356.0,0.23431]
[1744492010966,0.14548,85359.0,85356.0,0.23431]
[1744492011169,0.14548,85359.0,85357.0,0.01372675]
[1744492011397,0.0466,85363.0,85357.0,0.01372675]
[1744492011557,0.14548,85366.0,85361.0,0.011714]
[1744492011757,0.157194,85366.0,85361.0,0.234299]
[1744492011965,0.157194,85366.0,85349.0,0.31499864]
[1744492011966,0.011716,85352.0,85349.0,0.001]
[1744492012172,0.011715,85355.0,85349.0,0.23533]
[1744492012173,0.011716,85353.0,85349.0,0.23533]
[1744492012605,0.011715,85354.0,85349.0,0.23433]
[1744492012998,0.011715,85355.0,85350.0,0.234326]
[1744492013432,0.004,85359.0,85358.0,0.234307]
[1744492014241,0.003,85359.0,85358.0,0.35749132]
[1744492014463,0.003,85359.0,85358.0,0.35514854]
[1744492014871,0.14552,85368.0,85367.0,0.234282]
[1744492015455,0.011714,85364.0,85360.0,0.234299]
[1744492015668,0.011714,85365.0,85360.0,0.234299]
[1744492016024,0.011714,85367.0,85361.0,0.234296]
[1744492016365,0.011714,85365.0,85360.0,0.234299]
[1744492016672,0.011714,85365.0,85361.0,0.234296]
[1744492017108,0.011714,85366.0,85361.0,0.234296]
[1744492017549,0.011714,85365.0,85361.0,0.234296]
[1744492017970,0.011714,85363.0,85362.0,0.0073196]
[1744492018470,0.22725554,85363.0,85362.0,0.0073196]
[1744492018788,0.011715,85358.0,85355.0,0.234313]
[1744492018984,0.22725554,85363.0,85361.0,0.234298]
[1744492018985,0.0947,85363.0,85361.0,0.234298]
[1744492019208,0.24022,85363.0,85362.0,0.01382541]
[1744492019433,0.24122,85363.0,85362.0,0.01382541]
[1744492019642,0.24122,85363.0,85362.0,0.001]
[1744492019880,0.24122,85363.0,85362.0,0.0148434]
[1744492020051,0.36206154,85363.0,85362.0,0.001]
[1744492020774,0.36206154,85363.0,85355.0,0.001]
[1744492020775,0.011715,85358.0,85355.0,0.001]
[1744492021007,0.23431,85357.0,85355.0,0.001]
[1744492021188,0.23431,85357.0,85356.0,0.01388875]
[1744492021393,0.23431,85357.0,85350.0,0.00732041]
[1744492021599,0.011716,85353.0,85350.0,0.00732041]
[1744492021867,0.011716,85353.0,85351.0,0.01389511]
[1744492022325,0.011716,85353.0,85350.0,0.00732041]
[1744492022526,0.011716,85353.0,85352.0,0.01388875]
[1744492022732,0.234326,85351.0,85349.0,0.00732041]
[1744492022913,0.234326,85351.0,85350.0,0.002]
[1744492023292,0.011716,85352.0,85350.0,0.002]
[1744492024144,0.011716,85351.0,85348.0,0.234334]
[1744492024560,0.011716,85351.0,85350.0,0.002]
[1744492024918,0.011716,85351.0,85348.0,0.234334]
[1744492025080,0.011716,85351.0,85350.0,0.005]
[1744492025507,0.011716,85351.0,85350.0,0.002]
[1744492025709,0.011716,85352.0,85350.0,0.003]
[1744492025930,0.011714,85361.0,85351.0,0.234326]
[1744492026227,0.011714,85361.0,85350.0,0.005]
[1744492026228,0.14556,85363.0,85361.0,0.234296]
[1744492026426,0.011714,85362.0,85358.0,0.234307]
[1744492026662,0.011754,85363.0,85358.0,0.234307]
[1744492026847,0.011754,85363.0,85360.0,0.234301]
[1744492027247,0.011714,85362.0,85358.0,0.234307]
[1744492028116,0.011754,85363.0,85358.0,0.234307]
[1744492028117,4e-05,85363.0,85361.0,0.234299]
[1744492028680,4e-05,85363.0,85362.0,0.01392656]
[1744492029132,0.234333,85363.0,85361.0,0.00731996]
[1744492029475,0.234333,85363.0,85362.0,0.0212497]
[1744492029672,0.234333,85363.0,85362.0,0.01392974]
[1744492029820,0.011714,85362.0,85359.0,0.00731996]
[1744492030482,0.011714,85362.0,85360.0,0.00731996]
[1744492030995,0.011714,85362.0,85355.0,0.234314]
[1744492030996,0.011714,85362.0,85361.0,0.00731996]
[1744492032060,0.012714,85362.0,85361.0,0.00731996]
[1744492032260,0.011714,85362.0,85361.0,0.00731996]
[1744492032808,0.012714,85362.0,85361.0,0.00731996]
[1744492034928,0.012714,85362.0,85361.0,0.02125924]
[1744492035111,0.012714,85362.0,85361.0,0.00731996]
[1744492035315,0.012714,85362.0,85361.0,0.02125924]
[1744492035538,0.012714,85362.0,85361.0,0.00731996]
[1744492035695,0.012714,85362.0,85361.0,0.02125924]
[1744492035910,0.012714,85362.0,85361.0,0.02491925]
[1744492038572,0.012714,85362.0,85361.0,0.02125924]
[1744492039686,0.012714,85362.0,85361.0,0.00731996]
[1744492040090,0.001,85362.0,85361.0,0.00731996]
[1744492040319,0.001,85362.0,85361.0,0.02125606]
[1744492041240,0.001,85362.0,85361.0,0.02491607]
[1744492041421,4e-05,85363.0,85362.0,0.234296]
[1744492041842,4e-05,85363.0,85362.0,0.25544789]
[1744492042082,4e-05,85363.0,85362.0,0.2591079]
[1744492042930,0.00104,85363.0,85362.0,0.2591079]
[1744492043385,0.00104,85363.0,85362.0,0.29272188]
[1744492043800,0.00104,85363.0,85362.0,0.2601079]
[1744492043977,0.00104,85363.0,85362.0,0.41356269]
[1744492044683,0.00104,85363.0,85362.0,1.20786269]
[1744492045272,0.00104,85363.0,85362.0,1.21601258]
[1744492047004,5.0,85370.0,85369.0,0.234277]
[1744492047302,5.0,85370.0,85369.0,0.72773179]
[1744492047502,5.0,85370.0,85369.0,0.76007283]
[1744492048003,4.98413615,85370.0,85369.0,0.76007283]
[1744492048410,4.98413615,85370.0,85369.0,0.79276165]
[1744492048660,3.89175115,85370.0,85369.0,1.18388925]
[1744492048917,2.35400815,85370.0,85369.0,1.22998925]
[1744492049164,2.31114373,85370.0,85369.0,1.24308263]
[1744492049805,2.31214373,85370.0,85369.0,1.24808263]
[1744492049806,2.31214373,85370.0,85369.0,1.24908263]
[1744492050266,2.31214373,85370.0,85369.0,1.24808263]
[1744492050491,2.31214373,85370.0,85369.0,1.25208263]
[1744492050716,2.31114373,85370.0,85369.0,1.24708263]
[1744492051183,2.31214373,85370.0,85369.0,1.25408263]
[1744492052103,1.90294373,85370.0,85369.0,1.25408263]
[1744492053658,1.90294373,85370.0,85369.0,1.39920263]
[1744492057579,1.90294373,85370.0,85369.0,1.33776178]
[1744492057772,1.90294373,85370.0,85369.0,1.29266178]
[1744492058248,1.90298373,85370.0,85369.0,1.29266178]
[1744492058756,1.90298373,85370.0,85369.0,1.05838478]
[1744492058954,1.90298373,85370.0,85369.0,0.71838478]
[1744492059710,1.90298373,85370.0,85369.0,1.05838478]
[1744492060574,1.90298373,85370.0,85369.0,0.37507335]
[1744492061565,1.90298373,85370.0,85369.0,0.38319453]
[1744492063113,1.90298373,85370.0,85369.0,0.37507335]
[1744492064041,1.94798373,85370.0,85369.0,0.03507335]
[1744492064334,1.94798373,85370.0,85369.0,0.02197997]
[1744492065202,1.94798373,85370.0,85369.0,0.03502944]
[1744492068478,1.94798373,85370.0,85369.0,0.02197997]
[1744492069000,1.94798373,85370.0,85369.0,0.03010978]
[1744492070057,1.94798373,85370.0,85369.0,0.0431643]
[1744492071016,1.94798373,85370.0,85369.0,0.02197997]
[1744492071256,1.94798373,85370.0,85369.0,0.03503435]
[1744492071667,1.94798373,85370.0,85369.0,0.04316416]
[1744492074698,1.94798373,85370.0,85369.0,0.03503435]
[1744492075995,2.18225773,85370.0,85369.0,0.03503435]
[1744492076192,2.18225773,85370.0,85369.0,0.02197997]
[1744492076613,1.94798373,85370.0,85369.0,0.02197997]
[1744492076791,1.94798373,85370.0,85369.0,0.01497997]
[1744492076792,1.94698373,85370.0,85369.0,0.01497997]
[1744492077154,1.94798373,85370.0,85369.0,0.02197997]
[1744492077361,1.94798373,85370.0,85369.0,0.01797997]
[1744492077743,1.94798373,85370.0,85369.0,0.02197997]
[1744492078065,1.94798373,85370.0,85369.0,0.03507821]
[1744492078938,1.94798373,85370.0,85369.0,0.02197997]
[1744492079140,2.18225773,85370.0,85369.0,0.02197997]
[1744492080866,2.22745773,85370.0,85369.0,0.02197997]
[1744492081601,2.22745773,85370.0,85369.0,0.01797997]
[1744492081754,2.22745773,85370.0,85369.0,0.02197997]
[1744492082370,2.22745773,85370.0,85369.0,0.01797997]
[1744492082715,2.22745773,85370.0,85369.0,0.01897997]
[1744492082955,2.22745773,85370.0,85369.0,0.01197997]
[1744492082956,2.22645773,85370.0,85369.0,0.01197997]
[1744492083215,1.99218373,85370.0,85369.0,0.01297997]
[1744492083435,1.94698373,85370.0,85369.0,0.01297997]
[1744492084160,1.94698373,85370.0,85369.0,0.0261353]
[1744492084479,1.94698373,85370.0,85369.0,0.01297997]
[1744492084678,1.94698373,85370.0,85369.0,0.01297914]
[1744492085153,1.94698373,85370.0,85369.0,0.02612332]
[1744492085562,2.18125773,85370.0,85369.0,0.01297753]
[1744492085770,2.23115773,85370.0,85369.0,0.01297753]
[1744492086181,2.23115773,85370.0,85369.0,0.01297832]
[1744492087972,2.23115773,85370.0,85369.0,0.01297841]
[1744492092480,1.90198373,85370.0,85369.0,0.24725541]
[1744492092688,1.90198373,85370.0,85369.0,0.01297841]
[1744492093720,1.90198373,85370.0,85369.0,0.01197841]
[1744492093978,1.90198373,85370.0,85369.0,0.01397841]
[1744492094122,1.90198373,85370.0,85369.0,0.01297841]
[1744492094482,1.90198373,85370.0,85369.0,0.01397841]
[1744492094857,1.90198373,85370.0,85369.0,0.01297841]
[1744492095058,1.90198373,85370.0,85369.0,0.02715112]
[1744492095302,1.90198373,85370.0,85369.0,0.01397841]
[1744492097337,2.00028373,85370.0,85369.0,0.01397841]
[1744492097922,2.12112527,85370.0,85369.0,0.01397841]
[1744492098580,2.12112527,85370.0,85369.0,0.00931923]
[1744492098778,2.12112527,85370.0,85369.0,0.00731923]
[1744492098994,2.12112527,85370.0,85369.0,0.00831923]
[1744492099199,2.12112527,85370.0,85369.0,0.00931923]
[1744492099600,2.12112527,85370.0,85369.0,0.002]
[1744492102397,2.91690112,85370.0,85369.0,1e-06]
[1744492102851,2.85692612,85370.0,85369.0,1e-06]
[1744492103018,2.38431112,85370.0,85369.0,1e-06]
[1744492103356,0.011716,85351.0,85348.0,0.00366013]
[1744492103599,0.0983,85350.0,85348.0,0.00366013]
[1744492104036,0.332629,85350.0,85349.0,0.01098083]
[1744492106242,0.332629,85350.0,85349.0,0.01298083]
[1744492106389,0.332629,85350.0,85349.0,0.01498083]
[1744492109464,0.45347054,85350.0,85349.0,0.01498083]
[1744492109594,0.45347054,85350.0,85349.0,0.00566013]
[1744492109795,0.45347054,85350.0,85349.0,0.00366013]
[1744492110165,0.45347054,85350.0,85349.0,0.003]
[1744492110547,0.45347054,85350.0,85349.0,0.002]
[1744492111657,0.234334,85348.0,85347.0,0.00046536]
[1744492112048,0.234334,85348.0,85347.0,0.0077868]
[1744492112375,0.234334,85348.0,85347.0,0.00046536]
[1744492112941,0.234334,85348.0,85347.0,0.00146536]
[1744492113171,0.234334,85348.0,85347.0,0.00246536]
[1744492113506,0.295045,85350.0,85347.0,0.0097868]
[1744492113507,0.234333,85349.0,85347.0,0.0097868]
[1744492113660,0.234333,85349.0,85347.0,0.01344693]
[1744492114078,0.234333,85349.0,85348.0,0.00732144]
[1744492115076,0.234333,85349.0,85348.0,0.01098157]
[1744492115477,0.234333,85349.0,85348.0,0.01198157]
[1744492116512,0.234333,85349.0,85348.0,0.01298157]
[1744492118756,0.234331,85349.0,85348.0,0.01298157]
[1744492118986,4e-05,85351.0,85350.0,0.234329]
[1744492119216,4e-05,85351.0,85350.0,0.25002158]
[1744492119633,4e-05,85351.0,85350.0,0.26100315]
[1744492119845,4e-05,85351.0,85350.0,0.25866026]
[1744492120928,4e-05,85351.0,85350.0,0.26066026]
[1744492121587,4e-05,85351.0,85350.0,0.26366026]
[1744492121890,4e-05,85351.0,85350.0,0.26066026]
[1744492122254,4e-05,85351.0,85350.0,0.26366026]
[1744492122799,4e-05,85351.0,85350.0,0.3845018]
[1744492123825,4e-05,85351.0,85350.0,1.1337018]
[1744492124248,4e-05,85351.0,85350.0,1.1820018]
[1744492124567,4e-05,85351.0,85350.0,1.19014637]
[1744492124935,4e-05,85351.0,85350.0,1.18714637]
[1744492125306,4e-05,85351.0,85350.0,1.18514637]
[1744492125660,4e-05,85351.0,85350.0,1.18914637]
[1744492125870,4e-05,85351.0,85350.0,1.19514637]
[1744492125871,0.00108,85351.0,85350.0,1.19514637]
[1744492133699,0.00108,85351.0,85350.0,1.20968722]
[1744492133929,0.00108,85351.0,85350.0,1.21068722]
[1744492136760,0.00108,85351.0,85350.0,1.24320621]
[1744492136974,0.00108,85351.0,85350.0,1.21068722]
[1744492141155,0.00108,85351.0,85350.0,1.35548722]
[1744492142285,1.90198373,85370.0,85369.0,0.622577]
[1744492142509,1.90198373,85370.0,85369.0,1.29725854]
[1744492142757,0.85520435,85370.0,85369.0,1.44492326]
[1744492142901,0.0008864,85383.0,85382.0,0.58978185]
[1744492143085,0.0008864,85383.0,85382.0,0.75892339]
[1744492143289,0.0008864,85383.0,85382.0,0.93194882]
[1744492143929,0.0008864,85383.0,85382.0,1.39310895]
[1744492144290,0.00096267,85383.0,85382.0,1.39710895]
[1744492144508,4e-07,85384.0,85383.0,0.45554085]
[1744492144734,0.0008478,85402.0,85383.0,0.45554085]
[1744492144735,0.0008478,85402.0,85400.0,0.01554085]
[1744492144964,0.0008478,85402.0,85400.0,1.32778959]
[1744492145177,0.0008478,85402.0,85400.0,1.32910862]
[1744492145421,0.0008478,85402.0,85400.0,1.34457463]
[1744492146481,0.0008478,85402.0,85400.0,1.34757463]
[1744492146827,0.0008478,85402.0,85400.0,1.35057463]
[1744492147440,0.0008478,85402.0,85400.0,1.3595376]
[1744492147877,0.0008478,85402.0,85400.0,1.37078848]
[1744492152500,0.0008478,85402.0,85400.0,0.92815563]
[1744492152658,0.0008478,85402.0,85400.0,1.07271563]
[1744492153463,0.0008478,85402.0,85400.0,1.06971563]
[1744492153681,0.0008478,85402.0,85400.0,1.06671563]
[1744492153865,0.0008478,85402.0,85400.0,1.06871563]
[1744492154094,0.0008478,85402.0,85400.0,1.05975266]
[1744492154483,0.0008478,85402.0,85400.0,1.05775266]
[1744492154660,0.0008862,85401.0,85400.0,1.06275266]
[1744492155203,0.0008862,85401.0,85400.0,1.05975266]
[1744492155437,0.0008862,85401.0,85400.0,1.06275266]
[1744492155613,0.0008478,85402.0,85401.0,0.34]
[1744492155833,0.0008478,85402.0,85401.0,0.47349714]
[1744492156039,0.0008478,85402.0,85401.0,0.48164171]
[1744492156269,0.0008478,85402.0,85401.0,0.48896315]
[1744492156610,0.0008478,85402.0,85401.0,0.49262328]
[1744492156833,0.0008478,85402.0,85401.0,0.49462328]
[1744492157760,0.0008478,85402.0,85401.0,0.49762328]
[1744492158462,0.0008478,85402.0,85401.0,0.48947871]
[1744492159691,0.0008478,85402.0,85401.0,0.49758534]
[1744492161254,0.0008478,85402.0,85401.0,0.64214534]
[1744492162604,0.0918478,85402.0,85401.0,0.49758534]
[1744492163499,0.0918478,85402.0,85401.0,0.0367438]
[1744492163849,0.0918478,85402.0,85401.0,0.0240882]
[1744492164052,0.0918478,85402.0,85401.0,0.01098157]
[1744492164596,0.0918478,85402.0,85401.0,0.01598157]
[1744492165501,0.0918478,85402.0,85401.0,0.01098157]
[1744492165909,0.0928478,85402.0,85401.0,0.01098157]
[1744492166128,0.0928478,85402.0,85401.0,0.01198157]
[1744492171971,0.21368934,85402.0,85401.0,0.01198157]
[1744492172174,0.329527,85387.0,85385.0,0.00810663]
[1744492172574,0.234238,85383.0,85382.0,9.387e-05]
[1744492173348,0.011711,85385.0,85382.0,9.387e-05]
[1744492173349,0.245946,85385.0,85382.0,9.387e-05]
[1744492174101,0.234238,85384.0,85382.0,9.387e-05]
[1744492174359,0.0463,85383.0,85382.0,9.387e-05]
[1744492174703,0.0953,85383.0,85382.0,9.387e-05]
[1744492175109,0.0953,85383.0,85382.0,0.00309387]
[1744492175310,0.0953,85383.0,85382.0,0.00609387]
[1744492175512,0.0953,85383.0,85382.0,0.00309387]
[1744492175687,0.0953,85383.0,85382.0,9.387e-05]
[1744492175878,0.0973,85383.0,85382.0,9.387e-05]
[1744492176282,0.0973,85383.0,85382.0,0.00209387]
[1744492176477,0.1013,85383.0,85382.0,0.00209387]
[1744492176925,0.31932774,85383.0,85382.0,8.7e-07]
[1744492177127,0.31932774,85383.0,85340.0,0.0064615]
[1744492177128,0.011717,85345.0,85340.0,0.0064615]
[1744492177282,0.234345,85344.0,85343.0,0.12084154]
[1744492177481,0.234345,85344.0,85343.0,0.13180517]
[1744492177795,0.20491679,85344.0,85343.0,0.01096363]
[1744492177994,0.06168885,85345.0,85342.0,0.00055094]
[1744492178199,0.234345,85344.0,85342.0,0.00055094]
[1744492178944,0.234345,85344.0,85343.0,0.006]
[1744492178945,0.283845,85344.0,85343.0,0.006]
[1744492179192,0.283845,85344.0,85343.0,0.003]
[1744492179389,0.40468654,85344.0,85342.0,0.00155094]
[1744492179591,0.0987,85343.0,85342.0,0.00055094]
[1744492179989,0.0987,85343.0,85342.0,0.00155094]
[1744492181295,0.0987,85343.0,85342.0,0.00055094]
[1744492181522,0.0997,85343.0,85342.0,0.00055094]
[1744492181861,0.0987,85343.0,85342.0,0.00055094]
[1744492182156,0.0997,85343.0,85342.0,0.00055094]
[1744492183072,0.1027,85343.0,85342.0,0.00055094]
[1744492183513,0.0997,85343.0,85342.0,0.00055094]
[1744492183715,0.0987,85343.0,85342.0,0.00055094]
[1744492183920,0.1027,85343.0,85342.0,0.00055094]
[1744492185178,0.004,85343.0,85342.0,0.00055094]
[1744492186080,0.001,85343.0,85342.0,0.00055094]
[1744492186435,0.003,85343.0,85342.0,0.00055094]
[1744492186678,0.002,85343.0,85342.0,0.00055094]
[1744492186876,0.003,85343.0,85342.0,0.00055094]
[1744492187039,0.006,85343.0,85342.0,0.00055094]
[1744492187236,0.005,85343.0,85342.0,0.00055094]
[1744492187663,0.006,85343.0,85342.0,0.00055094]
[1744492191934,0.006,85343.0,85323.0,0.35887667]
[1744492192138,0.234408,85321.0,85320.0,0.0004232]
[1744492193063,0.281208,85321.0,85320.0,0.0004232]
[1744492193415,0.328808,85321.0,85320.0,0.0004232]
[1744492194066,0.328808,85321.0,85319.0,3e-07]
[1744492194067,0.44964954,85321.0,85319.0,3e-07]
[1744492194238,0.16647296,85320.0,85319.0,3e-07]
[1744492196273,0.17547296,85320.0,85319.0,0.0010003]
[1744492197075,0.18047296,85320.0,85319.0,0.0010003]
[1744492197278,0.234425,85315.0,85311.0,0.002]
[1744492197482,0.623133,85312.0,85311.0,1e-06]
[1744492197685,0.234463,85301.0,85300.0,1e-07]
[1744492198002,0.40400454,85301.0,85300.0,1e-07]
[1744492198238,0.011728,85265.0,85256.0,0.0004231]
[1744492198440,0.246267,85273.0,85257.0,0.12318725]
[1744492198607,0.011727,85267.0,85260.0,0.234576]
[1744492198810,0.011727,85268.0,85261.0,0.01221668]
[1744492199029,0.246275,85271.0,85261.0,0.01221668]
[1744492199225,0.011727,85270.0,85261.0,0.01221668]
[1744492199456,0.011727,85268.0,85262.0,0.234571]
[1744492199627,0.246276,85270.0,85262.0,0.234571]
[1744492199628,0.011727,85270.0,85262.0,0.234571]
[1744492199806,0.011727,85269.0,85263.0,0.00988076]
[1744492200199,0.011727,85267.0,85263.0,0.00988076]
[1744492200411,0.00046566,85270.0,85269.0,0.234551]
[1744492200622,0.00046566,85270.0,85269.0,0.24447967]
[1744492200870,0.00046566,85270.0,85269.0,0.24682491]
[1744492201072,0.00046566,85270.0,85269.0,0.00992867]
[1744492201482,0.011727,85267.0,85263.0,0.003]
[1744492201693,0.011727,85267.0,85263.0,0.12384154]
[1744492201905,0.011727,85267.0,85264.0,0.00990946]
[1744492202105,0.011727,85268.0,85264.0,0.00990946]
[1744492202388,0.011727,85267.0,85264.0,0.00990946]
[1744492202623,0.23456,85266.0,85264.0,0.00990946]
[1744492202852,0.1026752,85266.0,85264.0,0.00990946]
[1744492203072,0.011727,85267.0,85264.0,0.00990946]
[1744492203307,0.012727,85267.0,85264.0,0.00990946]
[1744492203765,0.012727,85267.0,85264.0,0.01271148]
[1744492203996,0.011727,85267.0,85264.0,0.01271148]
[1744492204208,0.011727,85268.0,85264.0,0.01271148]
[1744492204730,0.24674266,85270.0,85264.0,0.01271148]
[1744492204977,0.234562,85266.0,85264.0,0.01271148]
[1744492205377,0.234562,85266.0,85264.0,0.005]